fUSD/lending_fUSD_20240802
["ID","MTS","AMOUNT","RATE_DAILY","PERIOD"]
[333936617,1722637837548,-242.76008334,0.0001079,2]
[333936618,1722637837557,-312.58,0.0001089,2]
[333936619,1722637837567,-343.1705514,0.000109,2]
[333936620,1722637837577,-312.58,0.0001098,2]
[333936621,1722637837586,-312.58,0.00010988,2]
[333936622,1722637837597,-7896.61303823,0.00010999,2]
[333936635,1722637838839,-312.58,0.00010989,2]
[333936637,1722637838849,-19857.42475,0.00010999,2]
[333936639,1722637838860,-1700.0,0.00010999,2]
[333936673,1722637839690,-312.58,0.00010989,2]
[333936674,1722637839700,-47.6645,0.00010989,2]
[333936678,1722637839757,-264.9155,0.00010989,2]
[333936679,1722637839767,-135.0845,0.00010989,2]
[333936680,1722637839779,-177.4955,0.00010989,2]
[333936681,1722637839788,-312.58,0.00010989,2]
[333936682,1722637839798,-4373.97486268,0.00010999,2]
[333936683,1722637839822,-3500.0,0.00010999,2]
[333936684,1722637840100,-495.19125594,0.000109,2]
[333936685,1722637840110,-312.58,0.00010989,2]
[333936686,1722637840120,-5419.65874406,0.00010999,2]
[333936687,1722637840131,-16378.8625,0.00010999,2]
[333936947,1722637842709,-250.0,0.00010976,2]
[333936949,1722637842719,-312.58,0.00010989,2]
[333936951,1722637842728,-312.58,0.00010989,2]
[333936953,1722637842738,-312.58,0.00010989,2]
[333936955,1722637842747,-312.58,0.00010989,2]
[333936957,1722637842758,-312.58,0.00010989,2]
[333936959,1722637842767,-312.58,0.00010989,2]
[333936960,1722637842777,-312.58,0.00010989,2]
[333936962,1722637842786,-312.58,0.00010989,2]
[333936964,1722637842796,-312.58,0.00010989,2]
[333936966,1722637842806,-312.58,0.00010989,2]
[333936968,1722637842816,-4705.48438641,0.00010999,2]
[333936970,1722637842827,-2383.28505014,0.00010999,2]
[333936973,1722637842839,-1149.07228572,0.00010999,2]
[333936978,1722637842880,-312.58,0.00010989,2]
[333936980,1722637842889,-22009.95473981,0.00010999,2]
[333936982,1722637842901,-5801.76738721,0.00010999,2]
[333936984,1722637842910,-1201.26333196,0.00011,2]
[333936986,1722637842921,-500.0,0.00011,2]
[333936988,1722637842933,-3713.35091867,0.00011,2]
[333936990,1722637842945,-3767.59533793,0.00011,2]
[333936993,1722637842960,-325.6675325,0.00011,2]
[333936995,1722637842972,-579.54803453,0.00011,2]
[333936997,1722637842984,-380.33890379,0.00011,2]
[333936999,1722637842995,-2314.14804842,0.00011,2]
[333937002,1722637843011,-11345.9185728,0.00011,2]
[333937004,1722637843023,-8337.35299628,0.00011,2]
[333937163,1722637845807,-424.5935,9.961e-05,2]
[333937164,1722637845816,-291.39045799,0.00010196,2]
[333937165,1722637845826,-312.58,0.00010989,2]
[333937166,1722637845835,-312.58,0.00010989,2]
[333937167,1722637845844,-312.58,0.00010989,2]
[333937168,1722637845854,-100.13102599,0.00010989,2]
[333937169,1722637845865,-212.44897401,0.00010989,2]
[333937170,1722637845875,-312.58,0.00010989,2]
[333937171,1722637845885,-312.58,0.00010989,2]
[333937172,1722637845900,-312.58,0.0001099,2]
[333937173,1722637845910,-312.58,0.0001099,2]
[333937174,1722637845920,-312.58,0.0001099,2]
[333937175,1722637845929,-476528.41682492,0.00011,2]
[333937176,1722637845942,-841.45106896,0.00011,2]
[333937177,1722637845953,-1185.57,0.00011,2]
[333937178,1722637845968,-2654.94895016,0.00011,2]
[333937179,1722637845979,-404.48230813,0.00011,2]
[333937180,1722637845991,-15031.09902767,0.00011,2]
[333937181,1722637846013,-347.83,0.00011,2]
[333937182,1722637846025,-4919.07120143,0.00011,2]
[333937183,1722637846036,-1400.55359634,0.00011,2]
[333937184,1722637846047,-729.12371714,0.00011,2]
[333937185,1722637846059,-1222.58142477,0.00011,2]
[333937186,1722637846069,-1506.59380026,0.00011,2]
[333937188,1722637846129,-136478.51443228,0.00011,2]
[333937190,1722637846145,-948.90000057,0.00011,2]
[333937194,1722637846177,-8329.05580018,0.00011,2]
[333937196,1722637846190,-1099.02575716,0.00011,2]
[333937198,1722637846201,-631.37538617,0.00011,2]
[333937200,1722637846212,-2179.41794027,0.00011,2]
[333937202,1722637846223,-861.89995876,0.00011,2]
[333937204,1722637846234,-6775.73848486,0.00011,2]
[333937806,1722638237199,892.67457259,0.00012,30]
[333937808,1722638338011,176.21,8.637e-05,2]
[333937809,1722638338034,150.0,8.637e-05,2]
[333937810,1722638338057,150.0,8.637e-05,2]
[333937811,1722638338080,150.0,8.637e-05,2]
[333937812,1722638338101,111.17,8.637e-05,2]
[333937813,1722638352308,-1705.16722866,0.00010196,2]
[333937814,1722638352336,-200.0,0.000106,3]
[333937815,1722638352364,-500.0,0.000107,3]
[333937816,1722638352392,-501.83277134,0.000108,3]
[333937820,1722638816601,700.51,8.698e-05,2]
[333937825,1722638848415,227.58642964,8.698e-05,2]
[333937826,1722638860964,5289.41488354,8.698e-05,2]
[333937827,1722638885163,155.0,8.698e-05,2]
[333937828,1722638936738,227.58642964,8.698e-05,2]
[333937833,1722639031772,-300.0,0.0001024,2]
[333937834,1722639031781,-231.77659901,0.00010241,2]
[333937835,1722639031793,-994.86951933,0.00010241,2]
[333937836,1722639031804,-465.65120639,0.00010241,2]
[333937837,1722639031864,-477.34979256,0.00010241,2]
[333937838,1722639031875,-9842.91528271,0.00010241,2]
[333937839,1722639031884,-407.02,0.00010289,2]
[333937840,1722639031894,-1000.0,0.00010316,2]
[333937841,1722639031903,-668.44,0.00010318,2]
[333937842,1722639031913,-23890.0,0.00010341,2]
[333937843,1722639031927,-175.87,0.00010492,2]
[333937844,1722639031936,-265.17493776,0.00010543,2]
[333937845,1722639031946,-227.58642964,0.00010543,2]
[333937846,1722639031955,-500.0,0.000106,3]
[333937847,1722639031967,-1100.0,0.000107,3]
[333937848,1722639031977,-1600.0,0.000108,3]
[333937849,1722639031986,-747.98811257,0.00010856,2]
[333937850,1722639031996,-150.0,0.00010871,2]
[333937851,1722639032006,-187.5,0.00010872,2]
[333937852,1722639032015,-499.99,0.00010872,2]
[333937853,1722639032025,-1821.71,0.00010872,2]
[333937854,1722639032034,-961.18937,0.0001089,2]
[333937855,1722639032044,-364.65,0.000109,2]
[333937856,1722639032054,-172.6576321,0.000109,2]
[333937857,1722639032064,-22978.0382,0.000109,2]
[333937858,1722639032073,-4272.92793049,0.000109,2]
[333937859,1722639032083,-2200.0,0.000109,3]
[333937860,1722639032093,-182.54882854,0.000109,2]
[333937861,1722639032102,-314.16681006,0.000109,2]
[333937862,1722639032111,-497.84517526,0.000109,2]
[333937863,1722639032121,-13984.6342,0.000109,2]
[333937864,1722639032131,-150.0,0.00010959,2]
[333937865,1722639032140,-250.0,0.00010959,2]
[333937867,1722639032150,-700.51,0.00010961,2]
[333937868,1722639032159,-150.0,0.00010999,2]
[333937869,1722639032169,-1032433.77375789,0.00011,2]
[333937870,1722639032178,-532964.404032,0.00011,2]
[333937871,1722639032190,-1840.0,0.00011,2]
[333937872,1722639032201,-309.24154603,0.00011,2]
[333937873,1722639032213,-5041.91788826,0.00011,2]
[333937874,1722639032228,-397.7418011,0.00011,2]
[333937875,1722639032239,-1029.07753147,0.00011,2]
[333937876,1722639032251,-3250.0000005,0.00011,2]
[333937877,1722639032365,-3081.9,0.00011,2]
[333937878,1722639032376,-1450.0,0.00011,2]
[333937879,1722639032388,-690.8245438,0.00011,2]
[333937880,1722639032399,-1421.0333,0.00011,2]
[333937881,1722639032411,-8440.40459557,0.00011,2]
[333937882,1722639032424,-290297.54902621,0.00011,2]
[333937883,1722639032490,-380.82981456,0.00011,2]
[333937884,1722639032502,-6392.78316401,0.00011,2]
[333937885,1722639032514,-46218.61985079,0.00011,2]
[333937888,1722639037807,-343.1705514,0.000109,2]
[333937890,1722639037819,-3785.91244868,0.00011,2]
[333937910,1722639038799,-1919.21378837,0.00011,2]
[333937912,1722639038819,-394.14575585,0.00011,2]
[333937921,1722639038897,-3146.7938,0.00011,2]
[333937923,1722639038911,-769.34272266,0.00011,2]
[333937925,1722639038928,-268.53628757,0.00011,2]
[333937928,1722639038942,-10299.29559822,0.00011,2]
[333937930,1722639038957,-287.49901582,0.00011,2]
[333937933,1722639038976,-884.28010879,0.00011,2]
[333937935,1722639038991,-32560.46879961,0.00011,2]
[333937937,1722639039005,-2894.2789726,0.00011,2]
[333937940,1722639039023,-827.75998797,0.00011,2]
[333937943,1722639039038,-509376.76878297,0.00011,2]
[333937945,1722639039054,-417.2,0.00011,2]
[333937947,1722639039068,-71209.0,0.00011014,2]
[333937949,1722639039081,-24993.83053662,0.00011105,2]
[333937951,1722639039093,-4468.81245908,0.00011105,2]
[333937954,1722639039107,-349.35447946,0.00011105,2]
[333937956,1722639039118,-155.0,0.00011105,2]
[333937958,1722639039130,-236.25382,0.00011105,2]
[333937960,1722639039143,-254.95149509,0.00011186,2]
[333937962,1722639039155,-420.0,0.00011261,2]
[333937964,1722639039167,-840.48,0.00011532,2]
[333937967,1722639039180,-497.84517525,0.00011565,2]
[333937969,1722639039191,-4272.92793042,0.00011596,2]
[333937971,1722639039204,-1000.0,0.00011606,2]
[333937973,1722639039215,-1524.0,0.00011633,2]
[333937975,1722639039228,-2800.0,0.000117,4]
[333937978,1722639039239,-14343.24090969,0.000118,2]
[333937980,1722639039251,-500.0,0.000118,4]
[333937982,1722639039263,-175.87,0.00011804,2]
[333937984,1722639039274,-150.0,0.00011829,2]
[333937986,1722639039285,-150.0,0.00011861,2]
[333937988,1722639039297,-150.0,0.00011864,2]
[333937990,1722639039308,-150.0,0.00011881,2]
[333937992,1722639039319,-150.0,0.00011891,2]
[333937994,1722639039332,-150.0,0.00011896,2]
[333937996,1722639039344,-314.16681001,0.00011898,2]
[333937999,1722639039356,-500.0,0.000119,4]
[333938001,1722639039367,-150.0,0.0001191,2]
[333938003,1722639039378,-150.0,0.00011912,2]
[333938005,1722639039390,-420.45,0.00011918,2]
[333938007,1722639039402,-834.36,0.00011918,2]
[333938009,1722639039413,-150.0,0.0001192,2]
[333938011,1722639039425,-150.0,0.00011929,2]
[333938014,1722639039436,-150.0,0.0001193,2]
[333938016,1722639039448,-150.0,0.00011932,2]
[333938018,1722639039459,-150.0,0.00011933,2]
[333938020,1722639039471,-150.0,0.00011934,2]
[333938022,1722639039482,-150.0,0.0001194,2]
[333938024,1722639039494,-150.0,0.00011943,2]
[333938026,1722639039508,-150.0,0.00011955,2]
[333938028,1722639039519,-150.0,0.00011964,2]
[333938030,1722639039530,-150.0,0.00011967,2]
[333938033,1722639039542,-150.0,0.00011973,2]
[333938035,1722639039553,-150.0,0.00011979,2]
[333938037,1722639039565,-150.0,0.00011994,2]
[333938039,1722639039576,-550.0,0.00012,2]
[333938041,1722639039588,-200.0,0.00012,2]
[333938043,1722639039599,-500.0,0.00012002,2]
[333938045,1722639039611,-150.0,0.00012005,2]
[333938048,1722639039622,-150.0,0.00012008,2]
[333938050,1722639039634,-150.0,0.00012015,2]
[333938052,1722639039645,-150.0,0.00012018,2]
[333938054,1722639039657,-150.0,0.00012024,2]
[333938056,1722639039668,-150.0,0.00012024,2]
[333938058,1722639039680,-150.0,0.00012037,2]
[333938060,1722639039691,-302.02,0.00012055,2]
[333938062,1722639039702,-202.06334556,0.00012072,2]
[333938064,1722639039713,-200.41116099,0.00012073,2]
[333938067,1722639039724,-200.0,0.00012073,2]
[333938069,1722639039736,-200.0,0.00012073,2]
[333938183,1722639040938,-150.0,0.00012096,2]
[333938185,1722639040980,-150.0,0.00012098,2]
[333938189,1722639041010,-1220.97535518,0.00012099,3]
[333938192,1722639041034,-1220.97535518,0.00012099,3]
[333938195,1722639041049,-1220.97535517,0.00012099,3]
[333938197,1722639041059,-2975.62038045,0.00012099,2]
[333938199,1722639041069,-368736.0961801,0.000121,120]
[333938201,1722639041082,-30452.77550854,0.000121,120]
[333938203,1722639041093,-1097696.44513834,0.000121,120]
[333938205,1722639041105,-311.184893,0.000121,120]
[333938207,1722639041116,-451.15504761,0.000121,120]
[333938210,1722639041127,-3778.34015739,0.000121,120]
[333938212,1722639041139,-833.69583873,0.000121,120]
[333938214,1722639041151,-771.84081205,0.000121,120]
[333938216,1722639041163,-7542.86169553,0.000121,120]
[333938218,1722639041176,-769.96443153,0.000121,120]
[333938220,1722639041188,-292.04521374,0.000121,120]
[333938222,1722639041199,-1027.90064709,0.000121,120]
[333938285,1722639041809,-314.1870028,0.000109,2]
[333938287,1722639041818,-67793.85299722,0.000121,120]
[333938289,1722639041830,-1500.042676,0.000121,120]
[333938291,1722639041841,-1804.47217148,0.000121,120]
[333938293,1722639041853,-3999.64712997,0.000121,120]
[333938295,1722639041865,-194399.99999995,0.000121,120]
[333938308,1722639041990,-1720.39690758,0.000121,120]
[333938311,1722639042002,-1522.55429234,0.000121,120]
[333938314,1722639042024,-143791.39063544,0.000121,120]
[333938319,1722639042063,-13859.37145624,0.000121,120]
[333938413,1722639043019,-411.94805953,0.000121,120]
[333938564,1722639045023,-12085.05189133,0.000121,120]
[333938565,1722639045035,-386.68142865,0.000121,120]
[333938566,1722639045046,-803.1817991,0.000121,120]
[333938567,1722639045059,-459.41,0.000121,120]
[333938568,1722639045075,-326.99393954,0.000121,120]
[333938569,1722639045087,-358.2600009,0.000121,120]
[333938570,1722639045114,-699.5899999,0.000121,120]
[333938571,1722639045126,-1192.9975616,0.000121,120]
[333938572,1722639045138,-402.1328551,0.000121,120]
[333938573,1722639045149,-334.37839027,0.000121,120]
[333938574,1722639045160,-285.63321153,0.000121,120]
[333938575,1722639045182,-250.48040969,0.000121,120]
[333938576,1722639045197,-300.0,0.000121,120]
[333938577,1722639045208,-11529.85660001,0.000121,120]
[333938578,1722639045219,-8576.028957,0.000121,120]
[333938579,1722639045230,-7490.68946234,0.000121,120]
[333938702,1722639046542,-665.03216072,0.000121,2]
[333938704,1722639046554,-264.30000001,0.000121,2]
[333938716,1722639046657,-536.66783927,0.000121,2]
[333938718,1722639046667,-411.99230306,0.000121,120]
[333938720,1722639046680,-6188.57226742,0.000121,120]
[333938724,1722639046705,-546.006,0.000121,120]
[333938726,1722639046717,-16755.37284061,0.000121,120]
[333938728,1722639046728,-5249.05671973,0.000121,120]
[333939873,1722639596857,-196000.0,0.000121,120]
[333939874,1722639622131,-800.0,0.000121,120]
[333939876,1722639691058,-1300.026327,0.000121,120]
[333939877,1722639765448,718.75,8.769e-05,2]
[333939881,1722640112583,-400000.0,0.000121,120]
[333939882,1722640150175,-162.68963279,0.00010049,2]
[333939883,1722640184255,-1085300.0,0.000121,120]
[333939905,1722640233180,-159.817688,0.00010049,2]
[333939906,1722640233190,-107.41624713,0.000101,3]
[333939910,1722640233372,-492.51928809,0.000101,3]
[333939911,1722640233385,-307.5,0.000101,3]
[333939912,1722640233397,-4087.53372105,0.000101,3]
[333939913,1722640233512,-575.03074373,0.000101,3]
[333939914,1722640233522,-300.0,0.00010299,2]
[333939915,1722640233532,-11495.0,0.000103,5]
[333939916,1722640233541,-1826.19961989,0.00010543,2]
[333939917,1722640233551,-250.0,0.00010642,2]
[333939918,1722640233561,-227.49,0.00010673,2]
[333939919,1722640233571,-2814.15697255,0.00010691,2]
[333939920,1722640233619,-648.12882621,0.00010691,2]
[333939925,1722640233730,-1803.49340754,0.00010691,2]
[333939926,1722640233742,-8681.81578278,0.00010691,2]
[333939927,1722640233754,-1680.21209364,0.00010691,2]
[333939928,1722640233765,-3900.0,0.00010691,2]
[333939929,1722640235056,690.36,8.74e-05,2]
[333939934,1722640238908,-397.56493068,0.00010691,2]
[333939937,1722640238923,-876.62669098,0.00010691,2]
[333939939,1722640238942,-1562.53129562,0.00010691,2]
[333939941,1722640238952,-1000.0,0.00010704,2]
[333939943,1722640238962,-175.88,0.00010704,2]
[333939944,1722640238972,-229.92,0.00010778,2]
[333939945,1722640238983,-350.04,0.0001089,2]
[333939946,1722640238993,-279.19490854,0.0001089,2]
[333939947,1722640239005,-70.84509146,0.0001089,2]
[333939948,1722640239016,-350.04,0.0001089,2]
[333939949,1722640239027,-294.47,0.00010893,2]
[333939950,1722640239036,-3672.0765,0.000109,2]
[333939951,1722640239046,-1036.25982339,0.000109,2]
[333939952,1722640239058,-300.11965555,0.000109,2]
[333939953,1722640239070,-1522.57839701,0.000109,2]
[333939954,1722640239086,-12642.24702405,0.000109,2]
[333939955,1722640239100,-499.99,0.000109,2]
[333939957,1722640239109,-250.0,0.00010959,2]
[333939959,1722640239119,-690.36,0.00011004,2]
[333939961,1722640239128,-350.04,0.00011095,2]
[333939963,1722640239138,-2838.6219248,0.00011105,2]
[333939965,1722640239147,-155.0,0.00011105,2]
[333939967,1722640239157,-166.23762541,0.00011105,2]
[333939969,1722640239167,-730.055196,0.0001116,2]
[333939971,1722640239177,-420.0,0.00011329,2]
[333939973,1722640239187,-300.0,0.000115,4]
[333939975,1722640239196,-420.52,0.00011507,2]
[333939977,1722640239206,-834.36,0.00011507,2]
[333939979,1722640239216,-350.04,0.0001159,2]
[333939981,1722640239225,-600.0,0.000116,4]
[333939983,1722640239235,-900.0,0.000117,4]
[333939985,1722640239244,-1200.0,0.000118,4]
[333939987,1722640239254,-1235.6588,0.00011893,2]
[333939989,1722640239264,-1500.0,0.000119,4]
[333939991,1722640239274,-350.04,0.0001198,2]
[333939993,1722640239284,-350.04,0.00011983,2]
[333939995,1722640239293,-350.04,0.00011983,2]
[333939997,1722640239303,-2798.0,0.0001199,4]
[333939999,1722640239313,-27390.6726,0.00011993,2]
[333940001,1722640239322,-1105.7059,0.00012,2]
[333940003,1722640239332,-550.0,0.00012,2]
[333940005,1722640239345,-1000.0,0.00012,2]
[333940007,1722640239357,-329.55189547,0.00012,2]
[333940009,1722640239367,-398.2761402,0.00012,2]
[333940011,1722640239376,-500.0,0.00012002,2]
[333940013,1722640239387,-500.0,0.00012003,2]
[333940015,1722640239397,-500.0,0.00012003,2]
[333940017,1722640239408,-500.0,0.00012003,2]
[333940019,1722640239417,-1000.0,0.00012042,2]
[333940021,1722640239428,-155.7,0.0001209,2]
[333940024,1722640239439,-155.7,0.0001209,2]
[333940026,1722640239450,-155.7,0.0001209,2]
[333940028,1722640239460,-155.7,0.0001209,2]
[333940030,1722640239469,-155.7,0.0001209,2]
[333940032,1722640239480,-155.7,0.0001209,2]
[333940034,1722640239489,-155.7,0.0001209,2]
[333940036,1722640239499,-155.7,0.0001209,2]
[333940038,1722640239510,-155.7,0.0001209,2]
[333940040,1722640239520,-1374.0,0.000121,2]
[333940042,1722640239530,-118791.84462092,0.000121,120]
[333940044,1722640239543,-579.46660205,0.000121,120]
[333940046,1722640239554,-616.32684972,0.000121,120]
[333940049,1722640239567,-28445.57101361,0.000121,120]
[333940051,1722640239578,-1814.56851,0.000121,120]
[333940053,1722640239589,-65213.74985713,0.000121,120]
[333940055,1722640239602,-2883.84825415,0.000121,120]
[333940057,1722640239613,-4414.93242347,0.000121,120]
[333940138,1722640240236,-350.04,0.00011983,2]
[333940140,1722640240246,-350.04,0.00011983,2]
[333940142,1722640240256,-323.17,0.00011983,2]
[333940145,1722640240284,-26.87,0.00011983,2]
[333940147,1722640240294,-350.04,0.0001199,2]
[333940149,1722640240304,-123.09,0.00012032,2]
[333940152,1722640240316,-226.95,0.00012032,2]
[333940154,1722640240326,-350.04,0.0001209,2]
[333940156,1722640240336,-530.69259837,0.000121,120]
[333940158,1722640240356,-502.62768369,0.000121,120]
[333940160,1722640240368,-439.10667098,0.000121,120]
[333940176,1722640240518,-313.637495,0.000121,120]
[333940178,1722640240529,-2848.57941452,0.000121,120]
[333940180,1722640240540,-10251.98357883,0.000121,120]
[333940207,1722640240800,-334.3080637,0.000121,120]
[333940211,1722640240829,-350.04,0.0001209,2]
[333940213,1722640240840,-5808.76,0.000121,120]
[333940216,1722640240853,-352.08083946,0.000121,120]
[333940218,1722640240864,-2168.64831117,0.000121,120]
[333940420,1722640243029,-350.04,0.0001209,2]
[333940422,1722640243039,-260.48623065,0.0001209,2]
[333940450,1722640243279,-89.55376935,0.0001209,2]
[333940453,1722640243289,-350.04,0.0001209,2]
[333940456,1722640243298,-350.04,0.0001209,2]
[333940459,1722640243308,-350.04,0.0001209,2]
[333940462,1722640243318,-350.04,0.0001209,2]
[333940465,1722640243327,-350.04,0.0001209,2]
[333940468,1722640243337,-350.04,0.0001209,2]
[333940471,1722640243349,-350.04,0.0001209,2]
[333940474,1722640243359,-350.04,0.0001209,2]
[333940477,1722640243369,-46097.22459243,0.000121,120]
[333940480,1722640243382,-190615.9999998,0.000121,120]
[333940482,1722640243393,-1466.82571002,0.000121,120]
[333940486,1722640243421,-1906.25000025,0.000121,120]
[333940488,1722640243434,-228487.95895451,0.000121,120]
[333940489,1722640243457,-350.04,0.0001209,2]
[333940490,1722640243466,-100.81405471,0.000121,120]
[333940622,1722640244871,-3244.9929458,0.000121,120]
[333940625,1722640244883,-499.2015536,0.000121,120]
[333940944,1722640248920,-224.40486431,0.00012,2]
[333940945,1722640248930,-350.04,0.0001209,2]
[333940946,1722640248940,-350.04,0.0001209,2]
[333940947,1722640248950,-350.04,0.0001209,2]
[333940948,1722640248959,-193.55773581,0.0001209,2]
[333940949,1722640248972,-156.48226419,0.0001209,2]
[333940950,1722640248982,-223.8631477,0.000121,120]
[333940953,1722640249025,-5570.45453968,0.000121,120]
[333940955,1722640249036,-7069.64315569,0.000121,120]
[333940957,1722640249047,-289430.25060732,0.000121,120]
[333940960,1722640249059,-730.27883011,0.000121,120]
[333940962,1722640249070,-332.83,0.000121,120]
[333940964,1722640249082,-1716.38726381,0.000121,120]
[333940968,1722640249124,-500.0,0.000121,120]
[333940969,1722640249135,-3001.3,0.000121,120]
[333940972,1722640309857,-534000.0,0.000121,120]
[333940973,1722640408552,-700000.0,0.000121,120]
[333940974,1722640499645,-108000.0,0.000121,120]
[333940975,1722640503685,25840.79225718,9.247e-05,7]
[333940976,1722640726483,721.44,8.877e-05,2]
[333940977,1722641119434,495.73488057,9e-05,2]
[333940978,1722641155240,150.0,6.94e-05,2]
[333940979,1722641155262,150.0,6.94e-05,2]
[333940980,1722641155765,150.0,6.94e-05,2]
[333940981,1722641155788,150.0,6.94e-05,2]
[333940982,1722641155812,165.66996065,6.94e-05,2]
[333940983,1722641155834,165.66996065,6.94e-05,2]
[333940984,1722641155856,150.0,6.94e-05,2]
[333940985,1722641155879,102.32204286,6.94e-05,2]
[333940986,1722641177288,-62000.0,0.000121,120]
[333940987,1722641184298,150.0,8.487e-05,2]
[333940988,1722641184321,150.0,8.487e-05,2]
[333940989,1722641184344,150.0,8.487e-05,2]
[333940990,1722641184368,150.0,8.487e-05,2]
[333940991,1722641184391,110.67,8.487e-05,2]
[333940992,1722641222610,221.33799649,8.487e-05,2]
[333940993,1722641222635,6.24843315,8.487e-05,2]
[333940994,1722641251573,150.0,8.487e-05,2]
[333940995,1722641251595,150.0,8.487e-05,2]
[333940996,1722641251618,150.0,8.487e-05,2]
[333940997,1722641251641,150.0,8.487e-05,2]
[333940998,1722641251667,11.10819874,8.487e-05,2]
[333941000,1722641315276,227.58642964,8.487e-05,2]
[333941001,1722641329859,211.30537162,8.487e-05,2]
[333941002,1722641329882,88.69462838,8.487e-05,2]
[333941003,1722641331100,-150.0,9.246e-05,2]
[333941004,1722641331133,-300.0,9.246e-05,2]
[333941005,1722641331165,-300.0,9.246e-05,2]
[333941006,1722641331197,-898.40986272,9.246e-05,2]
[333941007,1722641359142,-271.425111,9.199e-05,2]
[333941008,1722641359164,-300.0,9.246e-05,2]
[333941009,1722641359186,-300.0,9.246e-05,2]
[333941010,1722641359207,-1757.461345,9.247e-05,7]
[333941015,1722641432465,-450.0,9.246e-05,2]
[333941016,1722641432475,-1066.47244228,9.247e-05,7]
[333941017,1722641432487,-1472.97,9.247e-05,7]
[333941018,1722641432499,-254.68592052,9.247e-05,7]
[333941019,1722641432554,-282.1571278,9.247e-05,7]
[333941020,1722641432566,-3552.90960999,9.247e-05,7]
[333941021,1722641432578,-764.60626949,9.247e-05,7]
[333941022,1722641432590,-3065.28778418,9.247e-05,7]
[333941023,1722641432642,-2612.32441227,9.247e-05,7]
[333941024,1722641432713,-9406.70292885,9.247e-05,7]
[333941025,1722641432725,-554.28354,9.247e-05,7]
[333941026,1722641432741,-517.67,9.247e-05,7]
[333941043,1722641438145,-1062.80286357,9.247e-05,7]
[333941139,1722641439527,-5400.0,9.247e-05,7]
[333941141,1722641439538,-642.12023881,9.247e-05,7]
[333941143,1722641439549,-2976.27273711,9.247e-05,7]
[333941157,1722641439692,-79471.05115404,9.247e-05,7]
[333941158,1722641439702,-1259.47895525,9.247e-05,7]
[333941160,1722641439712,-2881.61060455,9.247e-05,2]
[333941162,1722641439722,-18059.87,0.00010353,2]
[333941164,1722641439734,-1131.42,0.00010425,2]
[333941166,1722641439744,-250.0,0.00010567,2]
[333941167,1722641439754,-600.0,0.00010601,2]
[333941169,1722641439764,-710.67,0.00010751,2]
[333941171,1722641439775,-347.56083663,0.0001076,2]
[333941173,1722641439785,-4790.36180023,0.0001076,2]
[333941175,1722641439795,-351.12,0.0001076,2]
[333941177,1722641439804,-999.99,0.0001076,2]
[333941179,1722641439816,-1957.93568358,0.0001089,2]
[333941180,1722641439826,-1304.00457712,0.00010899,2]
[333941182,1722641439835,-5091.83033666,0.00010899,2]
[333941184,1722641439845,-343.1705514,0.000109,2]
[333941186,1722641439855,-908.27408175,0.000109,2]
[333941188,1722641439864,-150.0,0.00010959,2]
[333941190,1722641439874,-250.0,0.00010959,2]
[333941191,1722641439883,-2225.63,0.00010959,2]
[333941193,1722641439893,-155.7,0.0001099,2]
[333941195,1722641439903,-155.7,0.0001099,2]
[333941197,1722641439913,-155.7,0.0001099,2]
[333941199,1722641439923,-155.7,0.0001099,2]
[333941201,1722641439933,-9117.08275979,0.00010999,2]
[333941202,1722641439943,-30401.77718637,0.00011,2]
[333941203,1722641440017,-6173.7676,0.00011,2]